Cogmind - Beta 16 @@@ ROGUE MODE // 2026.02.02 @ 19:48:16 Player: Charleston314 Result: Destroyed by D-53 Grenadier with Mini Grenade Launcher Performance ------------- Evolutions (0) 0 Regions Visited (4) 800 Robots Destroyed (9) 45 Value Destroyed (109) 109 Prototype IDs (0) 0 Alien Tech Used (0) 0 Bonus (258) 258 TOTAL SCORE: 1212 Bonus ------- Aligned with FarCom 300 Friendly Fire -42 Cogmind --------- Core Integrity 0/250 Matter 112/300 Energy 100/100 System Corruption 1% Temperature Cool (0) Movement Core (50) Location -9/Mines Parts ------- > --- POWER (1) -------- (None) > --- PROPULSION (2) --- (None) > --- UTILITY (2) ------ (None) > --- WEAPON (2) ------- (None) > --- INVENTORY (5) ---- Ion Engine Light Ion Engine Light Ion Engine Mining Laser Welding Torch Peak State ------------ > --- POWER ------------ Improved Ion Engine > --- PROPULSION ------- Compact Wheel Compact Wheel > --- UTILITY ---------- Improved Heat Sink Small Storage Unit > --- WEAPON ----------- Rocket Launcher Enhanced Flamer > --- INVENTORY -------- Ion Engine Light Ion Engine Light Ion Engine Aluminum Leg Aluminum Leg Medium Laser Mining Laser Welding Torch [Rating: 13] Favorites ----------- Power Improved Ion Engine Engine Improved Ion Engine Propulsion Aluminum Leg Treads Light Treads Leg Aluminum Leg Wheel Compact Wheel Utility Small Storage Unit Device Improved Heat Sink Storage Small Storage Unit Processor Visual Processing Unit Weapon Enhanced Flamer Energy Gun Medium Laser Launcher Rocket Launcher Special Weapon Enhanced Flamer Build | -11 -10 -10 -10 -9 ------- Run | Yrd Mat Min Exi Min Slots Evolved . | . . . . . Power . | . . . . . Propulsion . | . . . . . Utility . | . . . . . Weapon . | . . . . . Parts Attached 18 | 6 3 8 1 . Power 2 | 1 . 1 . . Engine 2 | 1 . 1 . . Core . | . . . . . Reactor . | . . . . . Propulsion 6 | 2 2 2 . . Treads 2 | 2 . . . . Leg 2 | . . 2 . . Wheel 2 | . 2 . . . Hover . | . . . . . Flight . | . . . . . Utility 4 | 1 1 1 1 . Device 1 | . . 1 . . Storage 2 | 1 . . 1 . Processor 1 | . 1 . . . Hackware . | . . . . . Protection . | . . . . . Artifact . | . . . . . Weapon 6 | 2 . 4 . . Energy Gun 3 | 2 . 1 . . Energy Cannon . | . . . . . Ballistic Gun . | . . . . . Ballistic Cannon . | . . . . . Launcher 1 | . . 1 . . Special Weapon 2 | . . 2 . . Impact Weapon . | . . . . . Slashing Weapon . | . . . . . Piercing Weapon . | . . . . . Special Melee Weapon . | . . . . . Unidentified Prototypes . | . . . . . Parts Lost 4 | . . 1 . 3 Power . | . . . . . Propulsion 2 | . . . . 2 Utility . | . . . . . Weapon 2 | . . 1 . 1 Highest Loss Streak 2 | . . 1 . 2 To Critical Strikes . | . . . . . Average Backups 6 | 4 6 7 6 5 Power 2 | . 1 2 3 3 Propulsion 1 | 2 4 2 . . Utility . | . . . . . Weapon 1 | 1 1 2 2 1 Tool/Special . | . . . . . Unused Backups 4 | . . 1 . 3 Power 2 | . . . . 2 Propulsion . | . . . . . Utility . | . . . . . Weapon 2 | . . 1 . 1 Tool/Special . | . . . . . Average Slot Usage (%) 96 | . 85 98 100 94 Engine 14 | . 14 14 14 14 Leg 16 | . . 2 28 28 Wheel 11 | . 27 25 . . Device 9 | . . 5 14 14 Storage 14 | . 14 14 14 14 Processor 2 | . 3 8 . . Energy Gun 8 | . 24 14 . 5 Launcher 8 | . . 2 14 14 Special Weapon 9 | . . 8 14 2 Peak Build Rating 13 | 6 8 13 13 13 Average Rating 10 | 4 6 10 13 10 On Entrance 7 | . 6 7 13 13 Avg Prop Armor Cover (%) . | . . . . . Naked Turns 1 | . . . . 1 Heaviest Build 19 | 14 14 19 19 19 Greatest Support 40 | 40 32 32 20 20 Greatest Overweight (x) 2 | 2 . . . . Average Overweight (x) . | . . . . . Largest Inventory Capacity 20 | 8 8 8 20 8 Average Capacity 8 | 7 8 8 8 7 Most Carried 8 | 7 8 8 7 6 Average Carried 6 | 4 6 7 6 5 Final Capacity 8 | 8 8 8 8 5 Final Carried 8 | 6 8 6 6 5 Class Distribution -------------------- 100% | Mutant Dominant Class ---------------- Mutant | -10/Materials Mutant | -10/Mines Mutant | -10/Exiles Mutant | -9/Mines Resources | -11 -10 -10 -10 -9 ----------- Run | Yrd Mat Min Exi Min Matter Collected 332 | 218 . 112 . 2 Remotely . | . . . . . Salvage Created 186 | . 68 53 . 65 Parts 19 | . 7 8 . 4 Haulers Intercepted . | . . . . . Recyclers Shooed . | . . . . . Parts Field Recycled . | . . . . . Retrieved Matter . | . . . . . Parts Self-Destructed . | . . . . . Prevented . | . . . . . Parts Restored . | . . . . . Kills | -11 -10 -10 -10 -9 ------- Run | Yrd Mat Min Exi Min Combat Hostiles Destroyed 21 | . . 4 . 17 AOE 20 | . . 3 . 17 Classes Destroyed 6 | . 2 2 . 2 Worker 3 | . 3 . . . Builder 1 | . . . . 1 Watcher 1 | . 1 . . . Swarmer 3 | . . 3 . . Sentry 1 | . . 1 . . Assembled 17 | . . . . 17 Best Kill Streak 17 | . 3 3 . 17 Combat Bots Only 17 | . . 3 . 17 Max Kills in Single Turn 8 | . 1 3 . 8 Gunslinging . | . . . . . Exploded 8 | . . 3 . 8 Melee . | . . . . . Uniques/NPCs Destroyed . | . . . . . Combat | -11 -10 -10 -10 -9 -------- Run | Yrd Mat Min Exi Min Hostile Shots Fired 48 | . 15 7 . 26 Missed 16 | . 6 2 . 8 Hits 32 | . 9 5 . 18 Melee 1 | . . . . 1 Projectile 31 | . 9 5 . 17 AOE 10 | . . . . 10 Damage Taken 735 | . 139 106 . 490 Core 253 | . 34 65 . 154 Absorbed by Shields . | . . . . . Core Remaining (%) 100 | 100 . . . . Volleys Fired 32 | . 9 12 . 11 Largest 2 | . 2 2 . 1 Hottest 90 | . 90 90 . 33 Shots Fired 41 | . 18 13 . 10 Gun 20 | . 18 2 . . Cannon . | . . . . . Launcher 10 | . . . . 10 Special 11 | . . 11 . . Kinetic . | . . . . . Thermal 21 | . 9 12 . . Explosive 10 | . . . . 10 Electromagnetic 10 | . 9 1 . . Robot Hit Streak 5 | . 3 5 . 2 Robot Miss Streak 5 | . 3 1 . 5 Penetration Max . | . . . . . Secondary Targets . | . . . . . Shots Hit Robots 17 | . 8 6 . 3 Core Hits 48 | . 4 4 . 40 Critical Kills . | . . . . . Critical Parts Destroyed . | . . . . . Critical Strikes 1 | . . 1 . . Corrupt 1 | . . 1 . . Melee Attacks . | . . . . . Impact . | . . . . . Slashing . | . . . . . Piercing . | . . . . . Sneak Attacks . | . . . . . Combat Hostiles . | . . . . . Follow-up Attacks . | . . . . . Damage Inflicted 1458 | . 138 133 . 1187 Guns 149 | . 138 11 . . Cannons . | . . . . . Explosions 1254 | . . 67 . 1187 Melee . | . . . . . Ramming . | . . . . . Kinetic . | . . . . . Thermal 197 | . 75 122 . . Explosive 1187 | . . . . 1187 Electromagnetic 74 | . 63 11 . . Impact . | . . . . . Slashing . | . . . . . Piercing . | . . . . . Highest Corruption 1 | . 1 1 1 1 Average Corruption 1 | . 1 1 1 1 Corruption Purged . | . . . . . Corruption Blocked . | . . . . . Effects 9 | . 1 1 5 2 Message Errors 2 | . . . 2 . Matter Fused 3 | . . . 2 1 Heat Flow Errors 1 | . . 1 . . Parts Rejected 1 | . 1 . . . Parts Fused 1 | . . . 1 . Weapon Failures 1 | . . . . 1 Overload Shots . | . . . . . Overflow Damage 31 | . . . . 31 Projectiles . | . . . . . Explosions 31 | . . . . 31 Melee . | . . . . . Knockbacks . | . . . . . Impact . | . . . . . Kinetic . | . . . . . Secondary . | . . . . . Self-Inflicted Damage 62 | . . 36 . 26 Shots 3 | . . 1 . 2 Rammed . | . . . . . Targets Rammed . | . . . . . Kicked . | . . . . . Crushed . | . . . . . Highest Temperature 150 | . 150 129 . 3 Average Temperature 55 | . 56 57 . 3 Received Heat Transfer 141 | . 63 18 . 60 Siege Activations . | . . . . . Martial Activations . | . . . . . Shielding Activations . | . . . . . Robots Disrupted 1 | . . 1 . . Combat Hostiles 1 | . . 1 . . Robots Corrupted . | . . . . . Combat Hostiles . | . . . . . Parts Fried . | . . . . . Impact Corruptions . | . . . . . Robots Melted . | . . . . . Combat Hostiles . | . . . . . Parts Melted 3 | . . 3 . . Heat Transferred 772 | . 222 550 . . Parts Sabotaged . | . . . . . Parts Stolen . | . . . . . Parts Stripped . | . . . . . Power Chain Reactions 1 | . . 1 . . Alert | -11 -10 -10 -10 -9 ------- Run | Yrd Mat Min Exi Min Maximum Alert Level . | . . . . . Low Security (%) 100 | 100 100 100 . 100 Level 1 . | . . . . . Level 2 . | . . . . . Level 3 . | . . . . . Level 4 . | . . . . . Level 5 . | . . . . . High Security . | . . . . . Max Security . | . . . . . Peak Influence 92 | . 72 92 . 27 Initial 19 | . . 19 . . Average 17 | . 10 29 . 13 Influence Increases 237 | . 97 93 . 47 Destroy 0b10 Robot/C 80 | . . 80 . . Destroy 0b10 Robot/NC 25 | . 20 . . 5 Destroy Leader 12 | . 2 10 . . Disable Machine 15 | . 15 . . . Destroy Structure 45 | . . 3 . 42 Lose Combat Pursuer 60 | . 60 . . . Influence Decreases 237 | . 45 145 . 47 Entered New Map 33 | . . 33 . . Time Decay 167 | . 45 102 . 20 Lost Part 37 | . . 10 . 27 Squads Dispatched 1 | . 1 . . . Investigation . | . . . . . Extermination . | . . . . . Reinforcement 1 | . 1 . . . Assault . | . . . . . Garrison . | . . . . . Intercept . | . . . . . Searches Triggered . | . . . . . Construction Impeded . | . . . . . Haulers Reinforced . | . . . . . Active Scanning Responses . | . . . . . Cargo Convoy Interrupts . | . . . . . Stealth | -11 -10 -10 -10 -9 --------- Run | Yrd Mat Min Exi Min Distress Signals . | . . . . . Communications Jammed . | . . . . . Distress Signals . | . . . . . Times Spotted 37 | . 10 5 . 22 Peak Tracking Total 20 | . 7 3 . 20 Tactical Retreats 2 | . 1 . . 1 Traps | -11 -10 -10 -10 -9 ------- Run | Yrd Mat Min Exi Min Traps Triggered 2 | . 2 . . . Indirectly . | . . . . . Trap Hack Attempts . | . . . . . Triggered . | . . . . . Disarmed . | . . . . . Reprogrammed . | . . . . . Reused . | . . . . . Traps Extracted . | . . . . . Installed . | . . . . . Triggered . | . . . . . Machines | -11 -10 -10 -10 -9 ---------- Run | Yrd Mat Min Exi Min Machines Disabled 1 | . 1 . . . Max in Single Turn 1 | . 1 . . . Machines Repaired . | . . . . . Machines Dismantled . | . . . . . Machines Sabotaged . | . . . . . Overloaded Fab Kills . | . . . . . Hacking | -11 -10 -10 -10 -9 --------- Run | Yrd Mat Min Exi Min Machines Accessed 5 | . 1 . 4 . Terminals 1 | . 1 . . . Fabricators . | . . . . . Repair Stations . | . . . . . Recycling Units . | . . . . . Scanalyzers . | . . . . . Garrison Access . | . . . . . Total Hacks 51 | . 2 . 49 . Successful 49 | . . . 49 . Failed 2 | . 2 . . . Catastrophic . | . . . . . Database Lockouts . | . . . . . Manual . | . . . . . Terminals 2 | . 2 . . . Fabricators . | . . . . . Repair Stations . | . . . . . Recycling Units . | . . . . . Scanalyzers . | . . . . . Garrison Access . | . . . . . Terminal Hacks 49 | . . . 49 . Record 49 | . . . 49 . Fabricator Hacks . | . . . . . Repair Station Hacks . | . . . . . Recycling Unit Hacks . | . . . . . Scanalyzer . | . . . . . Garrison Access Hacks . | . . . . . Unauthorized Hacks . | . . . . . Terminals . | . . . . . Fabricators . | . . . . . Repair Stations . | . . . . . Recycling Units . | . . . . . Scanalyzers . | . . . . . Garrison Access . | . . . . . Data Cores Recovered . | . . . . . Used . | . . . . . Hacking Detections 1 | . 1 . . . Full Trace Events . | . . . . . Feedback Events . | . . . . . Feedback Blocked . | . . . . . Robot Schematics Acquired . | . . . . . Robots Built . | . . . . . Authchips . | . . . . . Time . | . . . . . Total Robot Build Rating . | . . . . . Part Schematics Acquired . | . . . . . Parts Built . | . . . . . Authchips . | . . . . . Time . | . . . . . Total Part Build Rating . | . . . . . Part Studies Acquired . | . . . . . Parts Repaired . | . . . . . Time . | . . . . . Parts Recycled . | . . . . . Recycled Matter . | . . . . . Retrieved Matter . | . . . . . Retrieved Components . | . . . . . Parts Scanalyzed . | . . . . . Part Schematics Acquired . | . . . . . Parts Damaged . | . . . . . Bothacking | -11 -10 -10 -10 -9 ------------ Run | Yrd Mat Min Exi Min Used RIF Installer . | . . . . . Robots Hacked . | . . . . . Non-combat . | . . . . . Combat . | . . . . . Robot Hacks Applied . | . . . . . Relay Couplers Released . | . . . . . Fabnet Peak Effective % . | . . . . . Robots Rewired . | . . . . . Allies Hacked . | . . . . . Hacks Repelled . | . . . . . Allies | -11 -10 -10 -10 -9 -------- Run | Yrd Mat Min Exi Min Total Allies . | . . . . . Largest Group . | . . . . . Highest-Rated Group . | . . . . . Highest-Rated Ally . | . . . . . Total Orders . | . . . . . Ally Attacks . | . . . . . Total Damage . | . . . . . Kills . | . . . . . Allies Corrupted . | . . . . . Allies Melted . | . . . . . Intel | -11 -10 -10 -10 -9 ------- Run | Yrd Mat Min Exi Min Active Infowar (turns) 226 | . 54 172 . . Optics 226 | . 54 172 . . Robot Analysis Total . | . . . . . Derelict Logs Recovered 2 | . . 2 . . Drone Launches . | . . . . . Drone Recoveries . | . . . . . Exploration | -11 -10 -10 -10 -9 ------------- Run | Yrd Mat Min Exi Min Turns Passed 1397 | 115 222 317 699 44 Spaces Moved 1082 | 57 165 263 579 18 Core 7 | 5 . . . 2 Treads 52 | 52 . . . . Legs 621 | . . 26 579 16 Wheels 402 | . 165 237 . . Hover . | . . . . . Flight . | . . . . . Fastest Speed 50 | 50 100 100 120 50 Average Speed 114 | 153 100 101 120 112 Slowest Speed 160 | 160 100 120 120 120 Overloaded Moves . | . . . . . Propulsion Burnouts . | . . . . . Robots Hopped . | . . . . . Potential Cave-ins . | . . . . . Cave-ins Triggered . | . . . . . Exploration Rate (%) 41 | 4 46 58 91 10 Regions Visited 4 Branch Regions 3 Pre-discovered Areas 2 | . . 1 1 . Known Exits Taken . | . . . . . Unknown Exits Taken 4 | 1 1 1 1 . Scrap Searched 1 | . . 1 . . Spaces Dug 10 | . . . . 10 Terrain Destroyed 78 | . . 3 . 75 Melee . | . . . . . Projectile . | . . . . . AOE 78 | . . 3 . 75 Terrain Rammed . | . . . . . Walls Destroyed . | . . . . . Machines Disabled . | . . . . . Actions | -11 -10 -10 -10 -9 --------- Run | Yrd Mat Min Exi Min Total 1191 | 84 202 293 582 30 Wait 34 | 10 22 2 . . Move 1078 | 56 164 262 578 18 Hop . | . . . . . Pick Up 21 | 12 3 5 1 . Fast Attach 1 | . 1 . . . Attach 11 | 6 . 4 . 1 Detach . | . . . . . Swap 8 | . 2 4 2 . Drop 6 | . 1 4 1 . Fire 32 | . 9 12 . 11 Melee . | . . . . . Ram . | . . . . . Kick . | . . . . . Crush . | . . . . . Escape Stasis . | . . . . . Rewire . | . . . . . Trap . | . . . . . Miscellaneous . | . . . . . Route ------- -11/Scrapyard -10/Materials -10/Mines -10/Exiles (discovered 2 exits: [*Min x2]) -9/Mines History --------- Turn | Location | Event 12 | -11/Scrapyard | Discovered new exit (range 16) 116 | -11/Scrapyard | Entered Materials 305 | -10/Materials | Build established: Mutant 325 | -10/Materials | Discovered new exit (range 6) 338 | -10/Materials | Entered Mines 360 | -10/Mines | Learned Materials interactive machine intel 386 | -10/Mines | Learned Materials stockpile data 439 | -10/Mines | A weapon hastily lodged in a ceiling crevice suddenly fell to the ground 476 | -10/Mines | Joined a pair of Derelicts in attacking an 0b10 outpost 587 | -10/Mines | Received a Rocket Launcher from a helpful Derelict 626 | -10/Mines | Learned location of Storage (-8) 647 | -10/Mines | Deemed a non-threat by the Exiles lab entrance 648 | -10/Mines | Discovered new exit (range 5) 655 | -10/Mines | Entered Exiles 676 | -10/Exiles | Discovered new exit (range 14) 694 | -10/Exiles | Met 8R-AWN 714 | -10/Exiles | Met EX-HEX 775 | -10/Exiles | Met EX-DEC 800 | -10/Exiles | Visited The Gauntlet 983 | -10/Exiles | Discovered new exit (range 14) 1066 | -10/Exiles | Learned location of Zion (-7) 1102 | -10/Exiles | Met EX-BIN 1122 | -10/Exiles | Aligned with FarCom system 1123 | -10/Exiles | Given EX-Vault access code 1354 | -10/Exiles | Entered Mines 1355 | -9/Mines | Assembled infested the area 1360 | -9/Mines | Assisted by a Guerilla fighting off Assembled 1360 | -9/Mines | Core integrity fell below 50% 1386 | -9/Mines | Destroyed 17 combat bots 1397 | -9/Mines | Released all parts (5) 1398 | -9/Mines | Core integrity fell below 20% 1398 | -9/Mines | Destroyed by D-53 Grenadier with Mini Grenade Launcher Last Messages --------------- C-45 Heavy ARC bursts open, deploying its payload. D-53 Grenadier unfolds itself. D-53 Grenadier suffers critical hit (Destroy). EU-6P5(h) destroyed. The unstable cave ceiling collapses. U-05 Engineer destroyed. G-47 Trooper destroyed. System corrupted: Rocket Launcher failed to launch. The unstable cave ceiling collapses. Aluminum Leg destroyed. The unstable cave ceiling collapses. Aluminum Leg destroyed. Released Rocket Launcher. Released Imp. Ion Engine. Released Imp. Heat Sink. Released Sml. Storage Unit. Released Med. Laser. [Achievement: Live, Flee, And Rebuild] Map ----- +----------------------------------------------------+ | ?????????????????????????????????????????????????? | | ?????????????????????????????????????????????????? | | ?????????????????????????????????????????????????? | | ?????????????????????????????????????????????????? | | ?????????????????????????????????????????????????? | | ?????????????????????????????????????????????????? | | ?????????????????????????????????????????????????? | | ?????????????????????????????????????????????????? | | ?????????????????????????????????????????????????? | | ???????????????????????% ???????????????????????? | | ??????????????????????? #?????????????????????? | | ?????????????????????# ! ?????????????????????? | | ????????????????????# |%= ?????????????????????? | | ??????????????????### * ?????????????????????? | | ??????????????????# ##????????????????????? | | ??????????????????# #????????????????????? | | ??????????????????# ###??????????????????? | | ??????????????????# #??????????????????? | | ??????????????????# d #??????????????????? | | ??????????????????# d #???????????????????? | | ???????????????????# #???????????????????? | | ???????????????????# ##???????????????????? | | ??????????????????## < ####????????????????? | | ??????????????????# #????????????????? | | ??????????????????## #????????????????? | | ??????????????????# @ #?????????????????? | | ?????????????????## ! ;#?????????????????? | | ?????????????????#gg =!][ ##?????????????????? | | ?????????????????# ##??????????????????? | | ?????????????????# ##???????????????????? | | ?????????????????# #???????????????????? | | ?????????????????# ###?????????????????? | | ?????????????????# #?????????????????? | | ?????????????????## ### #????????????????? | | ??????????????????## ##?### #????????????????? | | ???????????????????## #?????# ##????????????????? | | ????????????????????####??????##?????????????????? | | ?????????????????????????????????????????????????? | | ?????????????????????????????????????????????????? | | ?????????????????????????????????????????????????? | | | | | | | | | | | | | | | | | | | | | +----------------------------------------------------+ Best States ------------- Heat Dissipation 39 Energy Generation 12 Energy Capacity 265 Matter Stores 300 Matter Capacity 300 Sight Range 18 Terrain Scan Density 10 Evasion (%) 55 Recoil Reduction 2 Item Schematics ----------------- None Robot Schematics ------------------ None Fabricated ------------ Nothing Repaired ---------- Nothing Studied --------- None Alien Tech Used ----------------- None Achievements -------------- DATA ERROR: Steam Global Achievement% Exterminator Hunted I Have A Map? Live, Flee, And Rebuild Organ Harvest Quick And Dirty Sixth Sense Spot Them First There's More Where That Came From Challenges ------------ None Game ------ Seed TargetingSuperdenseMask Manual? 0 Play Time 00:34:48 Cumulative 8.7 hours Start 2026.02.01 @ 23:05:09 End 2026.02.02 @ 19:48:16 Sessions 3 Manual Loads 0 Difficulty Rogue Special Mode None Game No. 7 Rogue 7 Adventurer 0 Explorer 0 Win Type - Total 0 Types 0/0/0/0/0/0/0/0/0/0 Lore% 7 Gallery% 11 Achievement% 8 Wizard Run 0 Options --------- Layout 1 ASCII 0 Keyboard 0 Movement Mouse Keybinds 0 Fullscreen 1 Font 24/Smallcaps Map View 50x35 Zoom Use 0% Tactical HUD 0 Map Filters NONE Filters NONE Steam 0 RUN: feefa739-8ed3-4a4d-b978-249ada56e3d4